[Event "Early-Titled-Tuesday-Blitz-July-09-2024"]
[Site "Chess.com"]
[Date "2024.07.09"]
[Round "2"]
[White "sergoy"]
[Black "DucksParadise"]
[Result "1-0"]
[WhiteElo "2931"]
[BlackElo "2629"]
[TimeControl "180+1"]
[EndTime "8:16:26 PDT"]
[Termination "sergoy won by resignation"]

1. d4 {[%clk 0:03:00.9]} 1... f5 {[%clk 0:02:47.1]} 2. c4 {[%clk 0:02:59.8]}
2... Nf6 {[%clk 0:02:46.6]} 3. Nf3 {[%clk 0:03:00.1]} 3... g6 {[%clk 0:02:46.6]}
4. b4 {[%clk 0:02:59.4]} 4... Bg7 {[%clk 0:02:45]} 5. e3 {[%clk 0:02:59.4]} 5...
O-O {[%clk 0:02:44.5]} 6. Nc3 {[%clk 0:02:59.3]} 6... d6 {[%clk 0:02:37.5]} 7.
Bb2 {[%clk 0:02:58.9]} 7... e6 {[%clk 0:02:34.7]} 8. Be2 {[%clk 0:02:57.7]} 8...
Qe7 {[%clk 0:02:35.3]} 9. c5 {[%clk 0:02:56.7]} 9... Nc6 {[%clk 0:02:16.4]} 10.
b5 {[%clk 0:02:54.7]} 10... Nd8 {[%clk 0:02:16.5]} 11. cxd6 {[%clk 0:02:50.9]}
11... cxd6 {[%clk 0:02:17.4]} 12. O-O {[%clk 0:02:51]} 12... Nf7 {[%clk
0:02:16]} 13. a4 {[%clk 0:02:50.2]} 13... e5 {[%clk 0:02:09.8]} 14. dxe5 {[%clk
0:02:49.2]} 14... dxe5 {[%clk 0:02:10.7]} 15. Ba3 {[%clk 0:02:47.5]} 15... Qc7
{[%clk 0:01:57.9]} 16. Bxf8 {[%clk 0:02:46.8]} 16... Bxf8 {[%clk 0:01:58.8]} 17.
Rc1 {[%clk 0:02:46.9]} 17... Qe7 {[%clk 0:01:52.9]} 18. Bc4 {[%clk 0:02:44.8]}
18... Be6 {[%clk 0:01:51.3]} 19. Qb3 {[%clk 0:02:38.9]} 19... Bxc4 {[%clk
0:01:42.2]} 20. Qxc4 {[%clk 0:02:39]} 20... Kg7 {[%clk 0:01:38.9]} 21. Nd5
{[%clk 0:02:38.3]} 21... Nxd5 {[%clk 0:01:38.2]} 22. Qxd5 {[%clk 0:02:39.2]}
22... Rd8 {[%clk 0:01:37.3]} 23. Qb3 {[%clk 0:02:38.8]} 23... e4 {[%clk
0:01:32.5]} 24. Nd4 {[%clk 0:02:38.2]} 24... Ng5 {[%clk 0:01:11.7]} 25. h4
{[%clk 0:02:34.3]} 25... Rxd4 {[%clk 0:01:11.2]} 26. exd4 {[%clk 0:02:34.3]}
26... Nf3+ {[%clk 0:01:11]} 27. gxf3 {[%clk 0:02:32.2]} 27... Qxh4 {[%clk
0:01:06.9]} 28. f4 {[%clk 0:02:03.6]} 28... Bd6 {[%clk 0:00:55.8]} 29. Qg3
{[%clk 0:02:03.2]} 29... Qh6 {[%clk 0:00:54.7]} 30. Qg5 {[%clk 0:01:56.4]} 30...
Qh3 {[%clk 0:00:53.9]} 31. Rfe1 {[%clk 0:01:44.2]} 31... h6 {[%clk 0:00:38.7]}
32. Re3 {[%clk 0:01:13]} 32... hxg5 {[%clk 0:00:13]} 33. Rxh3 {[%clk 0:01:12.6]}
33... gxf4 {[%clk 0:00:13.3]} 34. Rhc3 {[%clk 0:01:09.7]} 34... g5 {[%clk
0:00:12.9]} 35. Rc7+ {[%clk 0:01:09.8]} 35... Bxc7 {[%clk 0:00:12.5]} 36. Rxc7+
{[%clk 0:01:09.5]} 36... Kf6 {[%clk 0:00:12.9]} 37. Rxb7 {[%clk 0:01:10.2]}
37... g4 {[%clk 0:00:13.3]} 38. Rxa7 {[%clk 0:01:10.3]} 38... f3 {[%clk
0:00:13.2]} 39. b6 {[%clk 0:01:10.4]} 39... f4 {[%clk 0:00:12.7]} 40. b7 {[%clk
0:01:10.5]} 40... e3 {[%clk 0:00:13.1]} 41. b8=Q {[%clk 0:01:10.2]} 41... e2
{[%clk 0:00:14]} 42. Qe5+ {[%clk 0:01:10]} 1-0

[Event "Early-Titled-Tuesday-Blitz-July-09-2024"]
[Site "Chess.com"]
[Date "2024.07.09"]
[Round "2"]
[White "Nbk90"]
[Black "AwareIdea"]
[Result "0-1"]
[WhiteElo "2263"]
[BlackElo "2491"]
[TimeControl "180+1"]
[EndTime "8:16:28 PDT"]
[Termination "AwareIdea won on time"]

1. d4 {[%clk 0:03:00.9]} 1... Nf6 {[%clk 0:02:58.3]} 2. c4 {[%clk 0:03:00.3]}
2... e6 {[%clk 0:02:58.5]} 3. Nf3 {[%clk 0:02:58.6]} 3... d5 {[%clk 0:02:57.2]}
4. g3 {[%clk 0:02:58.4]} 4... dxc4 {[%clk 0:02:56.6]} 5. Bg2 {[%clk 0:02:58.2]}
5... a6 {[%clk 0:02:57.2]} 6. O-O {[%clk 0:02:57.3]} 6... Nc6 {[%clk 0:02:57.4]}
7. b3 {[%clk 0:02:49.3]} 7... cxb3 {[%clk 0:02:53.7]} 8. axb3 {[%clk 0:02:28.6]}
8... Be7 {[%clk 0:02:51.7]} 9. Bb2 {[%clk 0:02:28.4]} 9... O-O {[%clk 0:02:51]}
10. Nbd2 {[%clk 0:02:28.6]} 10... Nb4 {[%clk 0:02:49.3]} 11. Rc1 {[%clk
0:02:25.7]} 11... c6 {[%clk 0:02:42.6]} 12. Ne5 {[%clk 0:02:22.2]} 12... a5
{[%clk 0:02:39.6]} 13. e4 {[%clk 0:02:19]} 13... Qb6 {[%clk 0:02:36.1]} 14. Ndc4
{[%clk 0:02:15.6]} 14... Qc7 {[%clk 0:02:32.3]} 15. Qe2 {[%clk 0:01:49.7]} 15...
Rd8 {[%clk 0:02:30.8]} 16. Rfd1 {[%clk 0:01:47.8]} 16... b6 {[%clk 0:02:30.2]}
17. d5 {[%clk 0:00:42.3]} 17... exd5 {[%clk 0:02:22.7]} 18. exd5 {[%clk
0:00:41]} 18... Nbxd5 {[%clk 0:02:20.2]} 19. Ne3 {[%clk 0:00:34.8]} 19... Bc5
{[%clk 0:02:01.5]} 20. Nxd5 {[%clk 0:00:31.6]} 20... Nxd5 {[%clk 0:02:02.4]} 21.
Bxd5 {[%clk 0:00:05]} 21... cxd5 {[%clk 0:01:53.7]} 22. Nd3 {[%clk 0:00:04.6]}
22... Ba6 {[%clk 0:01:52]} 23. Qg4 {[%clk 0:00:04.2]} 23... f5 {[%clk
0:01:22.7]} 24. Qxf5 {[%clk 0:00:02.2]} 24... Bc8 {[%clk 0:01:18.3]} 25. Qf4
{[%clk 0:00:01.3]} 25... Qxf4 {[%clk 0:01:15.4]} 26. Nxf4 {[%clk 0:00:02.2]}
26... d4 {[%clk 0:01:05.2]} 27. Nd3 {[%clk 0:00:02.4]} 27... Bg4 {[%clk
0:01:03]} 28. Nxc5 {[%clk 0:00:01.2]} 28... Bxd1 {[%clk 0:01:01]} 29. Ne6 {[%clk
0:00:01.5]} 29... Bxb3 {[%clk 0:00:54.9]} 30. Nxd8 {[%clk 0:00:01.2]} 30... Rxd8
{[%clk 0:00:55.8]} 0-1

[Event "Early-Titled-Tuesday-Blitz-July-09-2024"]
[Site "Chess.com"]
[Date "2024.07.09"]
[Round "2"]
[White "Beca95"]
[Black "MKlose11"]
[Result "1/2-1/2"]
[WhiteElo "2986"]
[BlackElo "2660"]
[TimeControl "180+1"]
[EndTime "8:16:29 PDT"]
[Termination "Game drawn - insufficient material"]

1. Nf3 {[%clk 0:02:59.3]} 1... Nf6 {[%clk 0:03:00.1]} 2. c4 {[%clk 0:02:59]}
2... g6 {[%clk 0:03:01]} 3. Nc3 {[%clk 0:02:58.5]} 3... c5 {[%clk 0:03:01.3]} 4.
e4 {[%clk 0:02:57.9]} 4... d6 {[%clk 0:03:00.2]} 5. d4 {[%clk 0:02:58]} 5...
cxd4 {[%clk 0:02:59.8]} 6. Nxd4 {[%clk 0:02:58]} 6... Nc6 {[%clk 0:03:00.7]} 7.
Be2 {[%clk 0:02:57]} 7... Bg7 {[%clk 0:03:01]} 8. Be3 {[%clk 0:02:57.1]} 8...
O-O {[%clk 0:03:01.9]} 9. O-O {[%clk 0:02:57.2]} 9... Ng4 {[%clk 0:02:50.7]} 10.
Bxg4 {[%clk 0:02:55.7]} 10... Bxg4 {[%clk 0:02:45.7]} 11. f3 {[%clk 0:02:49.9]}
11... Nxd4 {[%clk 0:02:34.9]} 12. Bxd4 {[%clk 0:02:48.7]} 12... Be6 {[%clk
0:02:34.9]} 13. Bxg7 {[%clk 0:02:48.7]} 13... Kxg7 {[%clk 0:02:35.8]} 14. Qd4+
{[%clk 0:02:47.3]} 14... Kg8 {[%clk 0:02:35.7]} 15. b3 {[%clk 0:02:47.5]} 15...
Qa5 {[%clk 0:02:35.5]} 16. Rfd1 {[%clk 0:02:45.9]} 16... Rac8 {[%clk 0:02:34.5]}
17. Ne2 {[%clk 0:02:44.8]} 17... b5 {[%clk 0:02:30.6]} 18. cxb5 {[%clk
0:02:43.6]} 18... Qxb5 {[%clk 0:02:30.5]} 19. Nf4 {[%clk 0:02:43.8]} 19... Rc2
{[%clk 0:02:28.2]} 20. Nxe6 {[%clk 0:02:43]} 20... fxe6 {[%clk 0:02:28.2]} 21.
Rd2 {[%clk 0:02:43.3]} 21... Rfc8 {[%clk 0:02:27.8]} 22. Rad1 {[%clk 0:02:42.8]}
22... Qa5 {[%clk 0:02:19.5]} 23. a4 {[%clk 0:02:34.9]} 23... Qc3 {[%clk
0:02:08.9]} 24. Qxc3 {[%clk 0:02:30.8]} 24... R8xc3 {[%clk 0:02:09.8]} 25. Rxc2
{[%clk 0:02:30.5]} 25... Rxc2 {[%clk 0:02:09.7]} 26. Rd4 {[%clk 0:02:30.5]}
26... a5 {[%clk 0:02:02.2]} 27. e5 {[%clk 0:02:29.1]} 27... d5 {[%clk
0:01:44.5]} 28. b4 {[%clk 0:02:05.8]} 28... axb4 {[%clk 0:01:41.5]} 29. Rxb4
{[%clk 0:02:05.1]} 29... Ra2 {[%clk 0:01:38.5]} 30. h4 {[%clk 0:02:04.2]} 30...
Kf7 {[%clk 0:01:36.7]} 31. Kh2 {[%clk 0:02:04.4]} 31... h6 {[%clk 0:01:37.1]}
32. Kh3 {[%clk 0:02:04.6]} 32... Re2 {[%clk 0:01:33.4]} 33. f4 {[%clk 0:01:41]}
33... g5 {[%clk 0:01:32.3]} 34. fxg5 {[%clk 0:01:39.3]} 34... hxg5 {[%clk
0:01:32.6]} 35. h5 {[%clk 0:01:39.5]} 35... Rxe5 {[%clk 0:01:31.2]} 36. Kg4
{[%clk 0:01:38.3]} 36... Re2 {[%clk 0:01:29.7]} 37. g3 {[%clk 0:01:37.6]} 37...
Re3 {[%clk 0:01:29.3]} 38. a5 {[%clk 0:01:33.7]} 38... Ra3 {[%clk 0:01:27.6]}
39. Kxg5 {[%clk 0:01:31.4]} 39... Rxg3+ {[%clk 0:01:25.2]} 40. Rg4 {[%clk
0:01:31.3]} 40... Ra3 {[%clk 0:01:17.3]} 41. Rf4+ {[%clk 0:01:31.4]} 41... Kg8
{[%clk 0:01:08.1]} 42. Kg6 {[%clk 0:01:30.8]} 42... Rxa5 {[%clk 0:01:02.1]} 43.
Rf7 {[%clk 0:01:22.9]} 43... Ra6 {[%clk 0:00:44.7]} 44. Rxe7 {[%clk 0:01:21.8]}
44... e5+ {[%clk 0:00:44.8]} 45. Kf5 {[%clk 0:01:20.5]} 45... e4 {[%clk
0:00:41.6]} 46. Ke5 {[%clk 0:01:20.4]} 46... Rh6 {[%clk 0:00:32]} 47. Kxd5
{[%clk 0:01:18.8]} 47... Rxh5+ {[%clk 0:00:32.4]} 48. Kxe4 {[%clk 0:01:18.6]}
48... Rg5 {[%clk 0:00:32.5]} 49. Re5 {[%clk 0:01:18.2]} 49... Rxe5+ {[%clk
0:00:32.5]} 50. Kxe5 {[%clk 0:01:18.4]} 1/2-1/2

[Event "Early-Titled-Tuesday-Blitz-July-09-2024"]
[Site "Chess.com"]
[Date "2024.07.09"]
[Round "2"]
[White "MarcoRiehle"]
[Black "gshwbedhkhd"]
[Result "1-0"]
[WhiteElo "2850"]
[BlackElo "2585"]
[TimeControl "180+1"]
[EndTime "8:16:31 PDT"]
[Termination "MarcoRiehle won by resignation"]

1. e4 {[%clk 0:03:00.9]} 1... c5 {[%clk 0:02:59.7]} 2. a3 {[%clk 0:03:00.4]}
2... g6 {[%clk 0:02:57.4]} 3. h4 {[%clk 0:02:59]} 3... Nf6 {[%clk 0:02:54.9]} 4.
e5 {[%clk 0:02:58.8]} 4... Nd5 {[%clk 0:02:55.1]} 5. c4 {[%clk 0:02:57.6]} 5...
Nc7 {[%clk 0:02:53.9]} 6. h5 {[%clk 0:02:57.9]} 6... Bg7 {[%clk 0:02:53.7]} 7.
f4 {[%clk 0:02:52.9]} 7... d6 {[%clk 0:02:53.1]} 8. h6 {[%clk 0:02:34.6]} 8...
Bf8 {[%clk 0:02:52]} 9. Nc3 {[%clk 0:02:35.3]} 9... Nc6 {[%clk 0:02:50.2]} 10.
Nf3 {[%clk 0:02:33.2]} 10... Bg4 {[%clk 0:02:48.3]} 11. Be2 {[%clk 0:02:32.3]}
11... e6 {[%clk 0:02:45.9]} 12. d3 {[%clk 0:02:29.8]} 12... d5 {[%clk 0:02:40]}
13. cxd5 {[%clk 0:02:25.5]} 13... exd5 {[%clk 0:02:39.2]} 14. Bd2 {[%clk
0:02:19.7]} 14... Qd7 {[%clk 0:02:25]} 15. O-O {[%clk 0:02:19.7]} 15... Bxh6
{[%clk 0:02:23.4]} 16. b4 {[%clk 0:02:16.9]} 16... cxb4 {[%clk 0:02:20.4]} 17.
axb4 {[%clk 0:02:17.8]} 17... Nxb4 {[%clk 0:02:18.5]} 18. Nd4 {[%clk 0:02:16.6]}
18... Bxe2 {[%clk 0:02:15.7]} 19. Qxe2 {[%clk 0:02:15.3]} 19... Nc6 {[%clk
0:02:15]} 20. Nxc6 {[%clk 0:02:09.6]} 20... bxc6 {[%clk 0:02:14.4]} 21. d4
{[%clk 0:02:09.3]} 21... O-O {[%clk 0:02:03.8]} 22. f5 {[%clk 0:02:08.7]} 22...
Bxd2 {[%clk 0:02:02.3]} 23. Qxd2 {[%clk 0:02:09.6]} 23... f6 {[%clk 0:01:58.3]}
24. fxg6 {[%clk 0:02:06.9]} 24... hxg6 {[%clk 0:01:57.2]} 25. exf6 {[%clk
0:02:06.2]} 25... Rae8 {[%clk 0:01:51.7]} 26. Rxa7 {[%clk 0:01:52.8]} 26... Rf7
{[%clk 0:01:48.4]} 27. Qg5 {[%clk 0:01:48.3]} 27... Qe6 {[%clk 0:01:34.3]} 28.
Qxg6+ {[%clk 0:01:45.1]} 28... Kh8 {[%clk 0:01:34.8]} 29. Qh6+ {[%clk
0:01:29.4]} 29... Rh7 {[%clk 0:01:32.4]} 30. Qf4 {[%clk 0:01:29.7]} 30... Qf7
{[%clk 0:01:21]} 31. Qf5 {[%clk 0:00:51]} 31... Rg8 {[%clk 0:01:15.2]} 32. Ne2
{[%clk 0:00:47.3]} 32... Rh5 {[%clk 0:01:09.9]} 33. Rxc7 {[%clk 0:00:44.4]}
33... Qe8 {[%clk 0:00:43.2]} 34. f7 {[%clk 0:00:43.9]} 34... Rxg2+ {[%clk
0:00:21.4]} 35. Kxg2 {[%clk 0:00:44.8]} 35... Qxe2+ {[%clk 0:00:21.2]} 36. Rf2
{[%clk 0:00:45.1]} 1-0

[Event "Early-Titled-Tuesday-Blitz-July-09-2024"]
[Site "Chess.com"]
[Date "2024.07.09"]
[Round "2"]
[White "Me_ch_an"]
[Black "Sinquefield"]
[Result "0-1"]
[WhiteElo "2312"]
[BlackElo "2523"]
[TimeControl "180+1"]
[EndTime "8:16:34 PDT"]
[Termination "Sinquefield won by resignation"]

1. e4 {[%clk 0:03:00.9]} 1... d6 {[%clk 0:03:00.9]} 2. d4 {[%clk 0:02:55.7]}
2... Nf6 {[%clk 0:03:01.8]} 3. Nc3 {[%clk 0:02:55.4]} 3... Nbd7 {[%clk
0:03:01.9]} 4. f4 {[%clk 0:02:52.4]} 4... e5 {[%clk 0:03:02.8]} 5. Nf3 {[%clk
0:02:48.3]} 5... exd4 {[%clk 0:03:02.8]} 6. Nxd4 {[%clk 0:02:46.5]} 6... c6
{[%clk 0:03:03.2]} 7. Be2 {[%clk 0:02:43.6]} 7... g6 {[%clk 0:03:03.7]} 8. O-O
{[%clk 0:02:43]} 8... Bg7 {[%clk 0:03:04.3]} 9. Be3 {[%clk 0:02:41.4]} 9... O-O
{[%clk 0:03:04.7]} 10. Bf3 {[%clk 0:02:35.2]} 10... Re8 {[%clk 0:03:05.1]} 11.
Nb3 {[%clk 0:02:28.3]} 11... Qc7 {[%clk 0:03:05.3]} 12. Qd3 {[%clk 0:02:25.8]}
12... a5 {[%clk 0:02:38.2]} 13. a4 {[%clk 0:02:17.9]} 13... h5 {[%clk
0:02:18.8]} 14. Rad1 {[%clk 0:02:14.2]} 14... Bf8 {[%clk 0:02:18.7]} 15. Bd4
{[%clk 0:01:59.1]} 15... Ng4 {[%clk 0:02:17.5]} 16. Bxg4 {[%clk 0:01:54.2]}
16... hxg4 {[%clk 0:02:18.4]} 17. Qg3 {[%clk 0:01:44.9]} 17... Nb6 {[%clk
0:02:10.8]} 18. f5 {[%clk 0:01:44.9]} 18... Nc4 {[%clk 0:02:01.9]} 19. Qxg4
{[%clk 0:01:37.3]} 19... Ne5 {[%clk 0:02:02]} 20. Qh4 {[%clk 0:01:31.5]} 20...
Qe7 {[%clk 0:01:57.4]} 21. f6 {[%clk 0:01:31]} 21... Qe6 {[%clk 0:01:57.4]} 22.
Rf4 {[%clk 0:01:20.5]} 22... Bd7 {[%clk 0:01:40.7]} 23. Be3 {[%clk 0:01:11.2]}
23... Nc4 {[%clk 0:01:35.8]} 24. Bc1 {[%clk 0:01:01.8]} 24... Qe5 {[%clk
0:01:30.8]} 25. Rd3 {[%clk 0:01:00.1]} 25... d5 {[%clk 0:01:25.3]} 26. exd5
{[%clk 0:00:51.7]} 26... Bf5 {[%clk 0:01:25.5]} 27. Rdf3 {[%clk 0:00:43.8]}
27... Qe1+ {[%clk 0:01:19.8]} 28. Rf1 {[%clk 0:00:38.5]} 28... Qxh4 {[%clk
0:01:17.8]} 29. Rxh4 {[%clk 0:00:39.4]} 29... Bxc2 {[%clk 0:01:18]} 30. Rxc4
{[%clk 0:00:20.5]} 30... Bxb3 {[%clk 0:01:17.8]} 31. Rh4 {[%clk 0:00:14.7]}
31... cxd5 {[%clk 0:01:16]} 32. Bd2 {[%clk 0:00:12.3]} 32... d4 {[%clk
0:01:14.3]} 33. Ne4 {[%clk 0:00:10.6]} 33... Bd5 {[%clk 0:01:11.8]} 34. Ng3
{[%clk 0:00:05.5]} 34... Re2 {[%clk 0:01:10.5]} 35. Bc1 {[%clk 0:00:03.2]} 35...
Rxg2+ {[%clk 0:01:09.8]} 36. Kh1 {[%clk 0:00:03.5]} 36... Rxg3+ {[%clk 0:01:09]}
0-1

[Event "Early-Titled-Tuesday-Blitz-July-09-2024"]
[Site "Chess.com"]
[Date "2024.07.09"]
[Round "2"]
[White "isla88"]
[Black "Ganziitoo"]
[Result "1-0"]
[WhiteElo "2434"]
[BlackElo "2085"]
[TimeControl "180+1"]
[EndTime "8:16:37 PDT"]
[Termination "isla88 won by resignation"]

1. Nf3 {[%clk 0:03:00.9]} 1... Nf6 {[%clk 0:02:57.1]} 2. b3 {[%clk 0:03:00]}
2... d5 {[%clk 0:02:56.7]} 3. Bb2 {[%clk 0:03:00.1]} 3... e6 {[%clk 0:02:56.1]}
4. e3 {[%clk 0:03:00.1]} 4... Be7 {[%clk 0:02:56.5]} 5. d4 {[%clk 0:03:00.4]}
5... O-O {[%clk 0:02:56.9]} 6. Bd3 {[%clk 0:03:01.1]} 6... c5 {[%clk 0:02:55.4]}
7. Nbd2 {[%clk 0:03:01.4]} 7... b6 {[%clk 0:02:54.9]} 8. Ne5 {[%clk 0:03:01]}
8... Bb7 {[%clk 0:02:54.7]} 9. O-O {[%clk 0:02:59.7]} 9... Ne4 {[%clk
0:02:49.8]} 10. f4 {[%clk 0:02:55.8]} 10... f6 {[%clk 0:02:40.8]} 11. Nef3
{[%clk 0:02:47.5]} 11... f5 {[%clk 0:02:36.8]} 12. c4 {[%clk 0:02:46.3]} 12...
Nc6 {[%clk 0:02:28.3]} 13. cxd5 {[%clk 0:02:44.7]} 13... exd5 {[%clk 0:02:28.3]}
14. Rc1 {[%clk 0:02:44]} 14... Rc8 {[%clk 0:02:18.2]} 15. Qe2 {[%clk 0:02:41.8]}
15... Nb4 {[%clk 0:02:10.3]} 16. a3 {[%clk 0:02:20.9]} 16... Nxd3 {[%clk
0:02:07.1]} 17. Qxd3 {[%clk 0:02:21.8]} 17... Bf6 {[%clk 0:02:05.9]} 18. Ne5
{[%clk 0:02:19.7]} 18... Bxe5 {[%clk 0:01:48.8]} 19. dxe5 {[%clk 0:02:20.6]}
19... Qe7 {[%clk 0:01:14.3]} 20. Rfd1 {[%clk 0:02:15.6]} 20... Rfd8 {[%clk
0:01:13.6]} 21. Qe2 {[%clk 0:02:08.7]} 21... h6 {[%clk 0:01:13.1]} 22. Qe1
{[%clk 0:02:02.2]} 22... Ba6 {[%clk 0:01:11]} 23. b4 {[%clk 0:01:46.8]} 23...
cxb4 {[%clk 0:01:06.3]} 24. Nxe4 {[%clk 0:01:46.7]} 24... dxe4 {[%clk
0:00:31.9]} 25. axb4 {[%clk 0:01:45.3]} 25... Bd3 {[%clk 0:00:30]} 26. Bd4
{[%clk 0:01:41.4]} 26... Kh7 {[%clk 0:00:22.4]} 27. Qd2 {[%clk 0:01:35.5]} 27...
Rxc1 {[%clk 0:00:10.8]} 28. Rxc1 {[%clk 0:01:35.4]} 28... Rd7 {[%clk 0:00:11.5]}
29. Rc8 {[%clk 0:01:33.7]} 29... Rc7 {[%clk 0:00:11.7]} 30. Rxc7 {[%clk
0:01:18.7]} 30... Qxc7 {[%clk 0:00:12.6]} 31. Bc3 {[%clk 0:01:19.3]} 31... Kg8
{[%clk 0:00:12.7]} 32. e6 {[%clk 0:01:18.9]} 32... Qe7 {[%clk 0:00:12.3]} 33.
Qa2 {[%clk 0:01:18.9]} 33... Kh7 {[%clk 0:00:09.2]} 34. Qd5 {[%clk 0:01:18.8]}
34... Ba6 {[%clk 0:00:08.1]} 35. Qxf5+ {[%clk 0:01:18.6]} 35... Kg8 {[%clk
0:00:08.6]} 36. Qxe4 {[%clk 0:01:18.6]} 36... Bc8 {[%clk 0:00:09.2]} 37. f5
{[%clk 0:01:18.6]} 37... Qd6 {[%clk 0:00:09.5]} 38. h3 {[%clk 0:01:16.7]} 38...
Qd1+ {[%clk 0:00:07.2]} 39. Kh2 {[%clk 0:01:17.3]} 39... Qd6+ {[%clk 0:00:08.1]}
40. Be5 {[%clk 0:01:17.7]} 40... Qe7 {[%clk 0:00:08.6]} 41. Qd5 {[%clk
0:01:15.2]} 41... Bb7 {[%clk 0:00:09.1]} 42. Qd2 {[%clk 0:01:10.4]} 42... Qxb4
{[%clk 0:00:08.2]} 43. Qd8+ {[%clk 0:01:07.2]} 43... Kh7 {[%clk 0:00:08.7]} 44.
Qd7 {[%clk 0:01:07.5]} 1-0

[Event "Early-Titled-Tuesday-Blitz-July-09-2024"]
[Site "Chess.com"]
[Date "2024.07.09"]
[Round "2"]
[White "Vaporwaffle94"]
[Black "alreadybroken23"]
[Result "1-0"]
[WhiteElo "2228"]
[BlackElo "2676"]
[TimeControl "180+1"]
[EndTime "8:16:38 PDT"]
[Termination "Vaporwaffle94 won by resignation"]

1. e4 {[%clk 0:03:00.9]} 1... Nc6 {[%clk 0:02:57.3]} 2. Nf3 {[%clk 0:02:58.2]}
2... d5 {[%clk 0:02:57.5]} 3. exd5 {[%clk 0:02:57.8]} 3... Qxd5 {[%clk
0:02:58.4]} 4. Nc3 {[%clk 0:02:55]} 4... Qh5 {[%clk 0:02:59]} 5. Be2 {[%clk
0:02:45.1]} 5... Bg4 {[%clk 0:02:58]} 6. O-O {[%clk 0:02:42.9]} 6... Nf6 {[%clk
0:02:57.8]} 7. h3 {[%clk 0:02:42.5]} 7... Bd7 {[%clk 0:02:20.3]} 8. d4 {[%clk
0:02:40.3]} 8... Qa5 {[%clk 0:02:03.1]} 9. a3 {[%clk 0:02:34.2]} 9... e6 {[%clk
0:01:47.5]} 10. Bg5 {[%clk 0:02:31.4]} 10... Be7 {[%clk 0:01:45.7]} 11. b4
{[%clk 0:02:30.1]} 11... Nxb4 {[%clk 0:01:34.4]} 12. axb4 {[%clk 0:02:28.4]}
12... Qxb4 {[%clk 0:01:35.3]} 13. Bxf6 {[%clk 0:02:27.2]} 13... gxf6 {[%clk
0:01:33.6]} 14. Ne4 {[%clk 0:02:26.2]} 14... f5 {[%clk 0:01:33.7]} 15. Ng3
{[%clk 0:02:24.8]} 15... Bd6 {[%clk 0:01:14.4]} 16. Rb1 {[%clk 0:02:24.1]} 16...
Qa5 {[%clk 0:01:13.8]} 17. Rxb7 {[%clk 0:02:21.8]} 17... Bc6 {[%clk 0:01:13.7]}
18. Rb1 {[%clk 0:02:22.1]} 18... Rg8 {[%clk 0:01:09.2]} 19. Nh5 {[%clk
0:02:19.5]} 19... Ke7 {[%clk 0:01:05.6]} 20. c4 {[%clk 0:02:16.6]} 20... Be4
{[%clk 0:00:55.4]} 21. Rb5 {[%clk 0:02:14.5]} 21... Qc3 {[%clk 0:00:52.6]} 22.
c5 {[%clk 0:02:13.9]} 22... Qa3 {[%clk 0:00:12.8]} 23. cxd6+ {[%clk 0:02:12.9]}
23... Qxd6 {[%clk 0:00:13.6]} 24. Ne5 {[%clk 0:02:07.7]} 24... Rad8 {[%clk
0:00:09.7]} 25. Bf3 {[%clk 0:02:06.5]} 25... Qxd4 {[%clk 0:00:06.3]} 26. Qxd4
{[%clk 0:02:01.6]} 26... Rxd4 {[%clk 0:00:07.2]} 27. Bxe4 {[%clk 0:02:01.5]}
27... Rxe4 {[%clk 0:00:08.1]} 28. Nf3 {[%clk 0:02:01.2]} 28... Rc8 {[%clk
0:00:06.7]} 29. Rc5 {[%clk 0:02:00.2]} 29... Ra4 {[%clk 0:00:05.5]} 30. Rfc1
{[%clk 0:01:59.6]} 30... a5 {[%clk 0:00:03.6]} 31. Rxc7+ {[%clk 0:01:57.5]}
31... Rxc7 {[%clk 0:00:04.5]} 32. Rxc7+ {[%clk 0:01:56.8]} 32... Kd6 {[%clk
0:00:05.4]} 33. Rxf7 {[%clk 0:01:56.1]} 33... Ra1+ {[%clk 0:00:06.3]} 34. Kh2
{[%clk 0:01:54.9]} 34... a4 {[%clk 0:00:07.2]} 35. Ra7 {[%clk 0:01:54.3]} 35...
a3 {[%clk 0:00:07.6]} 36. Ra6+ {[%clk 0:01:54.4]} 36... Kd5 {[%clk 0:00:07.7]}
37. Nf4+ {[%clk 0:01:52.1]} 37... Ke4 {[%clk 0:00:07.3]} 38. Nxe6 {[%clk
0:01:51.9]} 38... a2 {[%clk 0:00:07.7]} 39. Neg5+ {[%clk 0:01:50.6]} 39... Kd3
{[%clk 0:00:06.6]} 40. Nxh7 {[%clk 0:01:51]} 40... Ke2 {[%clk 0:00:06.2]} 41.
Nf8 {[%clk 0:01:49.4]} 41... Kxf2 {[%clk 0:00:05.3]} 42. Ng6 {[%clk 0:01:49.8]}
42... f4 {[%clk 0:00:04.8]} 43. Nxf4 {[%clk 0:01:49.2]} 43... Ke3 {[%clk
0:00:03.9]} 44. Nd5+ {[%clk 0:01:49]} 44... Kf2 {[%clk 0:00:01.3]} 45. Nb4
{[%clk 0:01:49.8]} 45... Rb1 {[%clk 0:00:01.5]} 46. Rxa2+ {[%clk 0:01:49.5]}
46... Ke3 {[%clk 0:00:01.8]} 47. Nc2+ {[%clk 0:01:49.2]} 47... Kf4 {[%clk
0:00:02.4]} 48. Ra4+ {[%clk 0:01:49.5]} 48... Kf5 {[%clk 0:00:02.3]} 49. Rg4
{[%clk 0:01:49]} 49... Kf6 {[%clk 0:00:03.2]} 50. Ne3 {[%clk 0:01:48.6]} 50...
Rb8 {[%clk 0:00:03.7]} 51. Rf4+ {[%clk 0:01:48.9]} 51... Kg6 {[%clk 0:00:03.5]}
52. Nh4+ {[%clk 0:01:46.6]} 52... Kg5 {[%clk 0:00:03.5]} 53. Rg4+ {[%clk
0:01:44.6]} 53... Kh5 {[%clk 0:00:04.1]} 54. Nef5 {[%clk 0:01:44.7]} 54... Rg8
{[%clk 0:00:04.7]} 55. Ng3+ {[%clk 0:01:43.8]} 55... Kh6 {[%clk 0:00:04.5]} 56.
Rxg8 {[%clk 0:01:44.5]} 1-0